fUSD/lending_fUSD_20250820
["ID","MTS","AMOUNT","RATE_DAILY","PERIOD"]
[380388600,1755721856672,-2273.0,0.00029392,2]
[380388601,1755721856681,-150.0,0.00029397,7]
[380388602,1755721856690,-153297.15,0.000294,7]
[380388603,1755721856699,-150.0,0.00029437,7]
[380388604,1755721856708,-150.0,0.00029437,7]
[380388605,1755721856717,-150.0,0.00029437,7]
[380388606,1755721856726,-150.0,0.00029437,7]
[380388607,1755721856736,-150.0,0.00029437,7]
[380388608,1755721856745,-14373.7507508,0.00029445,2]
[380388609,1755721856754,-150.0,0.00029457,7]
[380388610,1755721856764,-150.0,0.00029467,7]
[380388611,1755721856773,-150.0,0.00029484,7]
[380388612,1755721856782,-151.0,0.000295,7]
[380388613,1755721856796,-151.0,0.000295,7]
[380388614,1755721856805,-259.541896,0.000295,7]
[380388615,1755721856814,-151.0,0.000295,7]
[380388616,1755721856823,-428.84,0.000295,14]
[380388617,1755721856832,-1542.382776,0.000295,2]
[380388618,1755721856842,-500.0,0.000295,5]
[380388619,1755721856852,-500.0,0.00029518,7]
[380388620,1755721856861,-150.0,0.00029531,7]
[380388621,1755721856871,-150.0,0.00029531,7]
[380388622,1755721856880,-4810.81741,0.00029534,2]
[380388623,1755721856890,-150.0,0.00029539,7]
[380388624,1755721856900,-3409.1732843,0.00029546,2]
[380388625,1755721856909,-150.0,0.00029556,7]
[380388626,1755721856919,-235.1168002,0.0002956,2]
[380388627,1755721856928,-150.0,0.00029562,30]
[380388628,1755721856937,-150.0,0.00029579,7]
[380388629,1755721856949,-150.0,0.00029588,7]
[380388630,1755721856959,-150.0,0.00029588,7]
[380388631,1755721856968,-150.0,0.00029588,7]
[380388632,1755721856978,-150.0,0.00029588,7]
[380388633,1755721856987,-150.0,0.00029588,7]
[380388634,1755721856996,-1186.47,0.00029589,11]
[380388635,1755721857005,-183.0,0.0002959,2]
[380388636,1755721857015,-453.0,0.0002959,2]
[380388637,1755721857024,-500.0,0.0002959,2]
[380388638,1755721857034,-150.0,0.00029621,7]
[380388639,1755721857043,-150.0,0.00029626,7]
[380388640,1755721857052,-150.0,0.00029626,7]
[380388641,1755721857061,-200.0,0.00029635,2]
[380388642,1755721857070,-150.0,0.00029643,7]
[380388643,1755721857079,-550.0,0.00029664,5]
[380388644,1755721857090,-9303.23445054,0.00029666,2]
[380388645,1755721857103,-150.0,0.00029673,7]
[380388646,1755721857112,-200.0,0.00029675,2]
[380388647,1755721857121,-200.0,0.00029692,2]
[380388648,1755721857131,-200.0,0.00029692,2]
[380388649,1755721857142,-200.0,0.00029692,2]
[380388650,1755721857151,-200.0,0.00029693,2]
[380388651,1755721857161,-2273.0,0.00029695,2]
[380388652,1755721857171,-200.0,0.00029695,2]
[380388653,1755721857187,-200.0,0.00029696,2]
[380388654,1755721857197,-200.0,0.00029697,2]
[380388655,1755721857206,-200.0,0.00029698,2]
[380388656,1755721857215,-200.0,0.00029698,2]
[380388657,1755721857225,-200.0,0.00029699,2]
[380388658,1755721857235,-200.0,0.00029699,2]
[380388659,1755721857245,-1028.66289864,0.00029699,2]
[380388660,1755721857254,-150.0,0.00029702,7]
[380388661,1755721857264,-150.0,0.00029709,7]
[380388662,1755721857274,-150.0,0.00029715,7]
[380388663,1755721857283,-152.0,0.00029719,4]
[380388664,1755721857292,-200.57458109,0.00029719,5]
[380388665,1755721857301,-150.0,0.0002972,7]
[380388666,1755721857311,-150.0,0.0002972,7]
[380388667,1755721857321,-1321.0,0.00029722,14]
[380388668,1755721857331,-150.0,0.00029739,7]
[380388669,1755721857341,-150.0,0.00029739,7]
[380388670,1755721857350,-150.0,0.00029767,7]
[380388671,1755721857359,-495.0,0.00029774,14]
[380388672,1755721857369,-150.0,0.00029784,7]
[380388673,1755721857379,-150.0,0.00029789,7]
[380388674,1755721857388,-2000.0,0.00029799,30]
[380388675,1755721857398,-150.0,0.00029814,7]
[380388676,1755721857407,-150.0,0.00029814,7]
[380388677,1755721857416,-150.0,0.00029829,7]
[380388678,1755721857426,-473.08152029,0.00029839,2]
[380388679,1755721857435,-150.0,0.00029862,7]
[380388680,1755721857444,-453.0,0.00029864,2]
[380388681,1755721857453,-500.0,0.00029864,2]
[380388682,1755721857463,-150.0,0.00029865,7]
[380388683,1755721857472,-150.0,0.00029874,7]
[380388684,1755721857482,-5576.57071151,0.00029876,5]
[380388685,1755721857491,-344.91441206,0.00029884,2]
[380388686,1755721857499,-1000.0,0.00029887,2]
[380388687,1755721857509,-150.0,0.0002989,7]
[380388688,1755721857518,-150.0,0.0002989,7]
[380388689,1755721857528,-150.0,0.0002989,7]
[380388690,1755721857537,-4152.0,0.0002989,2]
[380388691,1755721857546,-804.17102365,0.000299,2]
[380388692,1755721857556,-1052.84,0.000299,30]
[380388693,1755721857565,-150.0,0.00029909,7]
[380388694,1755721857574,-150.0,0.00029909,7]
[380388695,1755721857583,-150.0,0.00029917,7]
[380388696,1755721857592,-150.0,0.00029947,7]
[380388697,1755721857602,-150.0,0.0002995,7]
[380388698,1755721857611,-150.0,0.00029956,7]
[380388699,1755721857620,-1560.4630561,0.00029979,2]
[380388700,1755721857629,-232.0831295,0.0002999,2]
[380388701,1755721857639,-151.0,0.0002999,7]
[380388702,1755721857648,-150.0,0.00029991,7]
[380388703,1755721857658,-2273.0,0.00029998,2]
[380388704,1755721857669,-500.4330065,0.0003,11]
[380388705,1755721857679,-241.0,0.0003,4]
[380388706,1755721857688,-10000.0,0.0003,10]
[380388707,1755721857697,-19442.03044623,0.0003,2]
[380388708,1755721857706,-162.1501639,0.0003,2]
[380388709,1755721857715,-1001.0,0.0003,3]
[380388710,1755721857724,-1000.0,0.0003,5]
[380388711,1755721857734,-1069.96083771,0.0003,10]
[380388712,1755721857743,-1251.74851707,0.0003,14]
[380388713,1755721857752,-1775.93146899,0.0003,2]
[380388714,1755721857761,-979.36727548,0.0003,2]
[380388715,1755721857770,-600.0042394,0.0003,2]
[380388716,1755721857780,-164.2,0.0003,2]
[380388717,1755721857789,-5000.0,0.0003,2]
[380388718,1755721857799,-500.0,0.0003,2]
[380388719,1755721857808,-506.33,0.0003,10]
[380388720,1755721857817,-434.3157899,0.0003,2]
[380388721,1755721857827,-499.97,0.0003,5]
[380388722,1755721857837,-700.0,0.0003,2]
[380388723,1755721857846,-150.0,0.0003,2]
[380388724,1755721857857,-500.75490201,0.0003,2]
[380388725,1755721857867,-131713.29093738,0.0003,5]
[380388726,1755721857876,-100000.0,0.0003,5]
[380388727,1755721857885,-1264.40778191,0.0003,10]
[380388728,1755721857894,-86236.07,0.0003,2]
[380388729,1755721857903,-43772.65212628,0.0003,5]
[380388730,1755721857912,-150.0,0.0003,30]
[380388731,1755721857922,-206.0,0.0003,30]
[380388732,1755721857932,-80278.7222263,0.0003,2]
[380388733,1755721857941,-1400.73476618,0.0003,30]
[380388734,1755721857951,-854.69904562,0.0003,30]
[380388735,1755721857960,-471.86857368,0.0003,30]
[380388736,1755721857968,-785.38295613,0.0003,7]
[380388737,1755721857977,-153.17123252,0.0003,30]
[380388738,1755721857987,-250.0,0.0003,2]
[380388739,1755721857996,-176.91759638,0.0003,2]
[380388740,1755721858005,-153.42,0.0003,5]
[380388741,1755721858014,-458.46930693,0.0003,30]
[380388742,1755721858024,-279.14,0.0003,2]
[380388743,1755721858034,-250.0,0.0003,7]
[380388744,1755721858043,-184625.32438536,0.0003,3]
[380388745,1755721858053,-1470.0,0.0003,30]
[380388746,1755721858062,-3600.0,0.0003,31]
[380388747,1755721858071,-872.75,0.0003,2]
[380388748,1755721858080,-843.78711038,0.0003,10]
[380388749,1755721858089,-843.97594471,0.0003,30]
[380388750,1755721858099,-1266.0,0.0003,30]
[380388751,1755721858112,-151.0,0.0003,7]
[380388752,1755721858122,-151.0,0.0003,7]
[380388753,1755721858131,-18138.37,0.0003,6]
[380388754,1755721858141,-58634.83,0.0003,6]
[380388755,1755721858151,-203.0,0.0003,30]
[380388756,1755721858160,-1090.43,0.0003,6]
[380388757,1755721858169,-6345.56,0.0003,6]
[380388758,1755721858179,-151.0,0.0003,7]
[380388759,1755721858188,-26149.88,0.0003,6]
[380388760,1755721858198,-222.089162,0.0003,7]
[380388761,1755721858207,-222.089162,0.0003,7]
[380388762,1755721858216,-222.089162,0.0003,7]
[380388763,1755721858225,-222.089162,0.0003,7]
[380388764,1755721858234,-308.17,0.0003,2]
[380388765,1755721858243,-151.0,0.0003,7]
[380388766,1755721858252,-151.0,0.0003,7]
[380388767,1755721858262,-151.0,0.0003,7]
[380388768,1755721858272,-151.0,0.0003,7]
[380388769,1755721858281,-151.0,0.0003,7]
[380388770,1755721858290,-151.0,0.0003,7]
[380388771,1755721858299,-151.0,0.0003,7]
[380388772,1755721858308,-151.0,0.0003,7]
[380388773,1755721858317,-151.0,0.0003,7]
[380388774,1755721858326,-151.0,0.0003,7]
[380388775,1755721858336,-151.0,0.0003,7]
[380388776,1755721858345,-197.620959,0.0003,7]
[380388777,1755721858354,-151.0,0.0003,7]
[380388778,1755721858363,-151.0,0.0003,7]
[380388779,1755721858373,-151.0,0.0003,7]
[380388780,1755721858382,-151.0,0.0003,7]
[380388781,1755721858391,-151.0,0.0003,7]
[380388782,1755721858400,-151.0,0.0003,7]
[380388783,1755721858409,-151.0,0.0003,7]
[380388784,1755721858418,-151.0,0.0003,7]
[380388785,1755721858427,-151.0,0.0003,7]
[380388786,1755721858436,-151.0,0.0003,7]
[380388787,1755721858445,-151.0,0.0003,7]
[380388788,1755721858455,-151.0,0.0003,7]
[380388789,1755721858464,-151.0,0.0003,7]
[380388790,1755721858474,-151.0,0.0003,7]
[380388791,1755721858483,-151.0,0.0003,7]
[380388792,1755721858493,-151.0,0.0003,7]
[380388793,1755721858502,-151.0,0.0003,7]
[380388794,1755721858511,-151.0,0.0003,7]
[380388795,1755721858520,-151.0,0.0003,7]
[380388796,1755721858530,-151.0,0.0003,7]
[380388797,1755721858539,-151.0,0.0003,7]
[380388798,1755721858547,-151.0,0.0003,7]
[380388799,1755721858556,-458.46930693,0.0003,10]
[380388800,1755721858565,-151.0,0.0003,7]
[380388801,1755721858574,-190.093354,0.0003,7]
[380388802,1755721858583,-151.0,0.0003,7]
[380388803,1755721858591,-190.093354,0.0003,7]
[380388804,1755721858600,-151.0,0.0003,7]
[380388805,1755721858609,-151.0,0.0003,7]
[380388806,1755721858619,-254.343599,0.0003,7]
[380388807,1755721858629,-190.093354,0.0003,7]
[380388808,1755721858638,-190.093354,0.0003,7]
[380388809,1755721858647,-288.581976,0.0003,7]
[380388810,1755721858656,-260.871452,0.0003,7]
[380388811,1755721858666,-151.0,0.0003,7]
[380388812,1755721858677,-212.096407,0.0003,7]
[380388813,1755721858686,-2862.0,0.0003,2]
[380388814,1755721858695,-165.7,0.0003,22]
[380388815,1755721858705,-514.185812,0.0003,120]
[380388816,1755721858715,-342.19135967,0.0003,2]
[380388817,1755721860267,-151.0,0.00011,2]
[380388818,1755721860276,-151.0,0.00011,2]
[380388819,1755721860286,-151.0,0.00011,2]
[380388820,1755721860296,-151.0,0.00011,2]
[380388821,1755721860306,-151.0,0.00018,2]
[380388822,1755721860315,-151.0,0.0002,2]
[380388823,1755721860325,-458.46930693,0.00021688,2]
[380388824,1755721860335,-151.0,0.000217,2]
[380388825,1755721860345,-19.60762706,0.0003,2]
[380388826,1755721860378,-151.0,0.00011,2]
[380388827,1755721860388,-151.0,0.00018,2]
[380388828,1755721860398,-1138.20101327,0.0003,2]
[380388829,1755721860409,-535.63264253,0.0003,120]
[380388830,1755721860420,-212.04014818,0.0003,10]
[380388831,1755721860430,-150.0,0.00030003,7]
[380388832,1755721860440,-150.0,0.00030003,7]
[380388833,1755721860451,-150.0,0.00030029,7]
[380388834,1755721860461,-150.0,0.00030033,7]
[380388835,1755721860471,-325.76692168,0.00030036,2]
[380388836,1755721860480,-150.0,0.00030041,7]
[380388837,1755721860490,-150.0,0.00030041,7]
[380388838,1755721860500,-150.0,0.0003005,7]
[380388839,1755721860510,-150.0,0.00030071,7]
[380388840,1755721860520,-2222.22,0.00030096,30]
[380388841,1755721860530,-150.0,0.00030097,7]
[380388842,1755721860540,-150.0,0.00030097,7]
[380388843,1755721860549,-6591.71240921,0.000301,5]
[380388844,1755721860561,-1997.54546296,0.000301,5]
[380388845,1755721860727,-518.06421324,0.00011,2]
[380388846,1755721860739,-2178.3,0.00011,2]
[380388847,1755721860750,-1566.33914425,0.00011,2]
[380388848,1755721860762,-29500.12504023,0.00011,2]
[380388849,1755721860774,-2445.99564189,0.00011,2]
[380388850,1755721860796,-499.305,0.00011,2]
[380388851,1755721860807,-2490.84457509,0.00011,2]
[380388852,1755721861001,-593.33939051,0.00010999,2]
[380388853,1755721861011,-2357.11060949,0.00011,2]
[380388854,1755721861022,-661.36,0.00011,2]
[380388855,1755721861043,-1934.3048977,0.00011,2]
[380388856,1755721861054,-10998.29146164,0.00011,2]
[380388858,1755721937779,-500.0,0.000106,3]
[380388859,1755721980176,-1000.0,0.000107,3]
[380388860,1755721980201,-1313.0,0.000108,3]
[380388862,1755722122887,-213.720518,0.0001057,2]
[380388863,1755722122908,-73.279482,0.00010623,2]
[380388864,1755722123899,-226.720518,0.00010623,2]
[380388865,1755722123922,-300.0,0.0001065,2]
[380388866,1755722123944,-300.0,0.00010769,2]
[380388867,1755722123967,-287.0,0.000108,3]
[380388868,1755722123991,-212.72434046,0.000109,2]
[380388869,1755722124014,-2100.0,0.000109,3]
[380388870,1755722124036,-500.0,0.00010973,2]
[380388871,1755722124059,-150.0,0.00010999,2]
[380388872,1755722124081,-300.0,0.00010999,2]
[380388873,1755722124105,-623.55514154,0.00010999,2]
[380388876,1755722265423,250.75581224,0.00027397,120]
[380388877,1755722328088,-153.6,0.00010999,2]
[380388883,1755722857600,-153.6,0.00010999,2]
[380388884,1755722864639,-146.4,0.00010999,2]
[380388885,1755722864666,-300.0,0.00011,2]
[380388886,1755722864693,-300.0,0.0001138,2]
[380388887,1755722864718,-300.0,0.00012099,2]
[380388888,1755722864744,-300.0,0.00012099,2]
[380388889,1755722864771,-4747.93064329,0.00013155,2]
[380388890,1755722864797,-423.0,0.00014716,2]
[380388891,1755722864825,-500.0,0.00014717,2]
[380388892,1755722864853,-225.43155847,0.00014717,2]
[380388893,1755722864881,-500.0,0.00014717,2]
[380388894,1755722864910,-500.0,0.00014717,2]
[380388895,1755722864937,-500.0,0.00014717,2]
[380388896,1755722864964,-500.0,0.00014717,2]
[380388897,1755722864983,-146.4,0.00014718,2]
[380388898,1755722865002,-300.0,0.00014718,2]
[380388899,1755722865013,-300.0,0.00014718,2]
[380388900,1755722865024,-300.0,0.00014718,2]
[380388901,1755722865034,-300.0,0.00014718,2]
[380388902,1755722865045,-4747.93064329,0.00014718,2]
[380388903,1755722865056,-423.0,0.00014718,2]
[380388904,1755722865069,-500.0,0.00014718,2]
[380388905,1755722865087,-225.43155847,0.00014718,2]
[380388906,1755722865097,-500.0,0.00014718,2]
[380388907,1755722865109,-500.0,0.00014718,2]
[380388908,1755722865122,-500.0,0.00014718,2]
[380388909,1755722865133,-500.0,0.00014718,2]
[380388910,1755722865145,-8702.62784772,0.00014718,2]
[380388931,1755723031960,-5618.9013784,0.0001261,2]
[380388932,1755723031969,-4083.1437603,0.0001261,2]
[380388933,1755723031978,-5618.9013784,0.00013164,2]
[380388935,1755723031987,-1872.07650321,0.00013167,2]
[380388936,1755723031998,-756.43989339,0.00013167,2]
[380388937,1755723032017,-1454.6273637,0.00013167,2]
[380388938,1755723032026,-5618.9013784,0.00013719,2]
[380388939,1755723032035,-4083.1437603,0.00013725,2]
[380388940,1755723032044,-300.0,0.00013871,2]
[380388941,1755723032054,-5618.9013784,0.00014273,2]
[380388942,1755723032063,-4083.1437603,0.00014282,2]
[380388943,1755723032072,-10691.32308893,0.00014718,2]
[380388944,1755723032083,-1421.775,0.00014718,2]
[380388945,1755723032105,-1032.65940234,0.00014718,2]
[380388946,1755723032115,-2682.63513752,0.00014718,2]
[380388947,1755723032130,-30417.91732177,0.00014718,2]
[380388948,1755723032139,-2000.0,0.00015246,2]
[380388949,1755723032148,-300.0,0.00015246,2]
[380388950,1755723032157,-250.0,0.00015581,2]
[380388951,1755723032167,-1500.0,0.00015581,2]
[380388952,1755723032176,-300.0,0.00015746,2]
[380388953,1755723032186,-4076.35341344,0.00015774,2]
[380388954,1755723032195,-1682.35,0.0001589,2]
[380388955,1755723032204,-60163.66077399,0.00015923,2]
[380388956,1755723032215,-1148.82855395,0.00015923,2]
[380388957,1755723032226,-1997.69733945,0.00015923,2]
[380388958,1755723032239,-4666.69284361,0.00015923,2]
[380388959,1755723032249,-6118.76517606,0.00016024,2]
[380388960,1755723032264,-741.12502237,0.00016024,2]
[380388961,1755723032274,-638.1,0.00016124,2]
[380388962,1755723032283,-2000.0,0.0001619,2]
[380388963,1755723032292,-300.0,0.0001619,2]
[380388964,1755723032301,-1000.0,0.00016344,2]
[380388965,1755723032310,-150.0,0.00016482,2]
[380388966,1755723032320,-239.68,0.00016531,2]
[380388967,1755723032329,-4229.80708365,0.00016541,2]
[380388968,1755723032338,-168.66,0.00016573,2]
[380388969,1755723032348,-197.0,0.00016573,3]
[380388970,1755723032357,-18474.12789398,0.00016617,2]
[380388971,1755723032370,-21782.0,0.00016617,2]
[380388972,1755723032382,-8248.32921746,0.00016617,2]
[380388986,1755723037925,-500.0,0.00014717,2]
[380388987,1755723037935,-247.27017316,0.00014717,2]
[380388988,1755723037944,-804.90371402,0.00016617,2]
[380388989,1755723037980,-2005.6021978,0.00016617,2]
[380388990,1755723038036,-16661.91648774,0.00016617,2]
[380388991,1755723038046,-186.56,0.0001703,2]
[380388992,1755723038055,-500.0,0.0001705,2]
[380388993,1755723038064,-500.0,0.0001705,2]
[380388994,1755723038073,-465.75989465,0.0001705,2]
[380388995,1755723038082,-502.90032224,0.0001705,2]
[380388996,1755723038091,-216.33877066,0.0001731,2]
[380388997,1755723038101,-157.13464367,0.0001731,2]
[380388998,1755723038110,-560.8368609,0.0001731,2]
[380388999,1755723038119,-67976.879511,0.00017311,2]
[380389000,1755723038130,-500.0,0.00017373,2]
[380389001,1755723038139,-500.0,0.00017373,2]
[380389002,1755723038149,-150.05,0.00017377,2]
[380389003,1755723038158,-4292.99817769,0.00017392,2]
[380389004,1755723038168,-150.05,0.00017397,2]
[380389005,1755723038177,-150.05,0.00017418,2]
[380389006,1755723038186,-150.05,0.00017438,2]
[380389007,1755723038195,-150.05,0.00017459,2]
[380389008,1755723038205,-150.05,0.00017479,2]
[380389010,1755723038214,-150.05,0.000175,2]
[380389012,1755723038223,-150.05,0.0001752,2]
[380389014,1755723038233,-150.05,0.00017541,2]
[380389016,1755723038242,-150.05,0.00017561,2]
[380389018,1755723038251,-1541.38,0.00017573,2]
[380389020,1755723038261,-6859.89019838,0.00017581,2]
[380389022,1755723038270,-150.05,0.00017582,2]
[380389024,1755723038279,-150.05,0.00017603,2]
[380389026,1755723038288,-150.05,0.00017623,2]
[380389028,1755723038297,-160.0,0.00017777,7]
[380389030,1755723038306,-1185.23188395,0.00017999,5]
[380389032,1755723038315,-1185.23188395,0.00017999,5]
[380389034,1755723038324,-1185.23188395,0.00017999,5]
[380389036,1755723038335,-67976.879511,0.00018004,2]
[380389039,1755723038345,-1682.35,0.00018082,6]
[380389042,1755723038354,-200.0,0.00018197,2]
[380389044,1755723038363,-168.04,0.00018354,2]
[380389047,1755723038373,-1000.0,0.00018387,2]
[380389050,1755723038383,-1185.23188395,0.00018999,5]
[380389054,1755723038392,-666.0,0.00019008,3]
[380389056,1755723038402,-6859.89019838,0.00019138,2]
[380389059,1755723038421,-5000.0,0.00019178,2]
[380389062,1755723038433,-186.91,0.00019863,2]
[380389065,1755723038443,-400.0,0.0001997,2]
[380389068,1755723038451,-500.0,0.0001997,2]
[380389071,1755723038461,-1682.35,0.00020273,10]
[380389075,1755723038471,-458.46930693,0.00020323,2]
[380389078,1755723038480,-160.0,0.00020323,2]
[380389080,1755723038489,-212.04014818,0.00020359,2]
[380389082,1755723038501,-843.97594471,0.00020359,2]
[380389084,1755723038511,-1000.0,0.0002043,2]
[380389086,1755723038520,-6859.89019838,0.00020695,2]
[380389088,1755723038530,-3000.00926377,0.00021,2]
[380389089,1755723038539,-1684.0,0.00021152,2]
[380389090,1755723038548,-157.05716418,0.00021186,2]
[380389091,1755723038557,-1684.0,0.00021237,2]
[380389092,1755723038566,-322.6107,0.00021286,2]
[380389093,1755723038575,-151.0,0.00021286,2]
[380389094,1755723038584,-721.12765535,0.00021286,2]
[380389095,1755723038593,-1000.0,0.00021286,2]
[380389096,1755723038602,-1000.0,0.00021286,2]
[380389097,1755723038611,-1000.0,0.00021286,2]
[380389099,1755723038620,-1000.0,0.00021286,2]
[380389101,1755723038629,-1000.0,0.00021286,2]
[380389103,1755723038639,-1000.0,0.00021286,2]
[380389105,1755723038648,-1000.0,0.00021286,2]
[380389106,1755723038657,-1000.0,0.00021286,2]
[380389108,1755723038666,-1000.0,0.00021286,2]
[380389110,1755723038675,-996.59942461,0.00021286,2]
[380389112,1755723038685,-1936.20493806,0.00021286,2]
[380389115,1755723038694,-500.0,0.00021286,2]
[380389117,1755723038706,-500.0,0.00021286,2]
[380389119,1755723038716,-151.0,0.00021286,2]
[380389121,1755723038726,-500.0,0.00021286,2]
[380389123,1755723038735,-500.0,0.00021286,2]
[380389125,1755723038744,-584.93012321,0.00021286,2]
[380389127,1755723038753,-9274.81107495,0.00021286,2]
[380389129,1755723038762,-151.0,0.00021286,2]
[380389131,1755723038771,-277.35679052,0.00021286,2]
[380389133,1755723038780,-151.0,0.00021286,2]
[380389135,1755723038789,-151.0,0.00021286,2]
[380389137,1755723038799,-151.0,0.00021286,2]
[380389139,1755723038808,-151.0,0.00021286,2]
[380389141,1755723038817,-151.0,0.00021286,2]
[380389143,1755723038826,-151.0,0.00021286,2]
[380389145,1755723038836,-151.0,0.00021286,2]
[380389147,1755723038845,-151.0,0.00021286,2]
[380389149,1755723038854,-151.0,0.00021286,2]
[380389151,1755723038863,-151.0,0.00021286,2]
[380389153,1755723038872,-151.0,0.00021286,2]
[380389155,1755723038881,-151.0,0.00021286,2]
[380389157,1755723038890,-151.0,0.00021286,2]
[380389159,1755723038900,-3217.67827403,0.00021341,2]
[380389161,1755723038909,-1684.0,0.00021358,2]
[380389163,1755723038918,-1684.0,0.00021482,2]
[380389165,1755723038928,-1684.0,0.00021586,2]
[380389167,1755723038937,-1684.0,0.00021586,2]
[380389169,1755723038946,-1684.0,0.00021677,2]
[380389171,1755723038956,-1684.0,0.00021708,2]
[380389173,1755723038965,-151.0,0.00021834,2]
[380389175,1755723038977,-151.0,0.00021834,2]
[380389177,1755723038986,-27188.1522513,0.00021881,7]
[380389179,1755723038995,-5000.0,0.00021918,2]
[380389181,1755723039005,-150.0,0.00021918,2]
[380389183,1755723039014,-200.0,0.00021918,2]
[380389185,1755723039023,-1865.47,0.00021945,30]
[380389187,1755723039033,-400.0,0.0002197,2]
[380389189,1755723039042,-400.0,0.0002197,2]
[380389191,1755723039051,-2222.22,0.000221,2]
[380389193,1755723039060,-1684.0,0.00022189,2]
[380389195,1755723039069,-1684.0,0.00022206,2]
[380389197,1755723039078,-1684.0,0.00022235,2]
[380389199,1755723039087,-6859.89019838,0.00022252,2]
[380389201,1755723039096,-1684.0,0.00022297,2]
[380389203,1755723039106,-1684.0,0.00022382,2]
[380389205,1755723039115,-1684.0,0.00022406,2]
[380389207,1755723039124,-1684.0,0.00022431,2]
[380389209,1755723039134,-1682.35,0.00022465,14]
[380389211,1755723039143,-1000.0,0.00022473,2]
[380389213,1755723039153,-1684.0,0.00022498,2]
[380389215,1755723039162,-1684.0,0.00022562,2]
[380389217,1755723039171,-1684.0,0.00022654,2]
[380389219,1755723039180,-334.5472959,0.00022655,2]
[380389222,1755723039190,-287.61899177,0.00022655,2]
[380389224,1755723039199,-1684.0,0.00022792,2]
[380389226,1755723039209,-600.0,0.00022822,2]
[380389228,1755723039218,-1684.0,0.00022866,2]
[380389230,1755723039227,-1684.0,0.00022946,2]
[380389232,1755723039236,-1684.0,0.00023027,2]
[380389234,1755723039246,-1684.0,0.00023098,2]
[380389236,1755723039255,-1684.0,0.00023224,2]
[380389238,1755723039264,-1684.0,0.00023285,2]
[380389240,1755723039273,-2222.22,0.00023368,2]
[380389242,1755723039282,-600.0,0.0002337,2]
[380389244,1755723039291,-183.0,0.00023546,3]
[380389246,1755723039300,-6859.89019838,0.00023808,2]
[380389248,1755723039310,-600.0,0.00023918,2]
[380389250,1755723039319,-843.97594471,0.00024,7]
[380389252,1755723039328,-346.92554586,0.00024024,2]
[380389254,1755723039337,-298.26089446,0.00024024,2]
[380389256,1755723039346,-747.8093786,0.00024025,2]
[380389258,1755723039355,-5011.71460666,0.00024119,2]
[380389260,1755723039364,-5000.0,0.00024119,2]
[380389262,1755723039373,-600.0,0.00024466,2]
[380389264,1755723039382,-1000.0,0.00024516,2]
[380389266,1755723039391,-1541.38,0.00024602,2]
[380389268,1755723039401,-1692.24305778,0.00024604,2]
[380389270,1755723039410,-340.79354813,0.00024608,2]
[380389272,1755723039424,-1692.24305778,0.00024608,2]
[380389274,1755723039434,-244.30152759,0.00024611,2]
[380389276,1755723039443,-244.30152759,0.00024616,2]
[380389278,1755723039453,-244.30152759,0.00024616,2]
[380389280,1755723039462,-244.30152759,0.00024619,2]
[380389282,1755723039472,-468.12239426,0.0002462,2]